[Event "ESP-chT Primera Division 2019"]
[Site "Linares"]
[Date "2019.08.30"]
[Round "5.12"]
[White "Garcia-Castany Musellas, Gal.la"]
[Black "Bermudez Revuelta, Paula"]
[Result "1-0"]
[ECO "B53"]
[WhiteElo "2149"]
[BlackElo "1702"]
[Annotator "NA"]
[PlyCount "49"]
[EventDate "2019.08.26"]
[EventType "team-tourn"]
[EventCountry "ESP"]
[SourceTitle "playchess.com"]
[Source "ChessBase"]
[SourceQuality "1"]
[TimeControl "5400+30"]

1. e4 {[%emt 0:00:00]} c5 {[%emt 0:00:00]} 2. Nf3 {[%emt 0:00:00]} d6 {[%emt 0:00:00]} 3. d4 {[%emt 0:00:08]} cxd4 {[%emt 0:00:00]} 4. Qxd4 {[%emt 0:00:14]} Nc6 {[%emt 0:00:00]} 5. Bb5 {[%emt 0:00:23]} Bd7 {[%emt 0:00:00]} 6. Qd3 {[%emt 0:00:32]} Nf6 {[%emt 0:00:12]} 7. Nc3 {[%emt 0:00:42]} e6 {[%emt 0:00:31]} 8. Bf4 {[%emt 0:02:33]} a6 {[%emt 0:05:18]} 9. Bxc6 {[%emt 0:02:19]} Bxc6 {[%emt 0:00:02]} 10. O-O-O {[%emt 0:01:56]} Be7 {[%emt 0:05:16]} 11. Rhe1 {[%emt 0:03:05]} d5 {[%emt 0:08:59]} 12. e5 {[%emt 0:10:37]} Nd7 {[%emt 0:02:04]} 13. Nd4 {[%emt 0:04:00]} Bg5 {[%emt 0:03:11]} 14. Qg3 {[%emt 0:04:05]} Bxf4+ {[%emt 0:01:09]} 15. Qxf4 {[%emt 0:00:18]} Rc8 {[%emt 0:08:50]} 16. Qg4 {[%emt 0:20:55]} O-O {[%emt 0:04:45]} 17. Rd3 {[%emt 0:05:32]} Kh8 {[%emt 0:11:06]} 18. Rg3 {[%emt 0:07:46]} Rg8 {[%emt 0:05:03]} 19. Rh3 {[%emt 0:07:51]} Rf8 {[%emt 0:04:37]} 20. Ree3 {[%emt 0:02:57]} Qe7 {[%emt 0:05:25]} 21. Reg3 {[%emt 0:05:48]} f5 {[%emt 0:05:59]} 22. Qg6 {[%emt 0:04:46]} h6 {[%emt 0:01:17]} 23. f4 {[%emt 0:01:33]} Nc5 {[%emt 0:00:55]} 24. b4 {[%emt 0:05:00]} Be8 {[%emt 0:02:11]} 25. Rxh6+ {[%emt 0:00:10]} 1-0

[Event "ESP-chT Primera Division 2019"]
[Site "Linares"]
[Date "2019.08.30"]
[Round "5.16"]
[White "Arizmendi Martinez, Julen Luis"]
[Black "Alshameary Puente, Ismael"]
[Result "1-0"]
[ECO "A50"]
[WhiteElo "2512"]
[BlackElo "2444"]
[Annotator "ChessBase"]
[PlyCount "63"]
[EventDate "2019.08.26"]
[EventType "team-tourn"]
[EventCountry "ESP"]
[SourceTitle "playchess.com"]
[Source "ChessBase"]
[SourceQuality "1"]
[TimeControl "5400+30"]

1. d4 {[%emt 0:02:25]} Nf6 {[%emt 0:00:00]} 2. c4 {[%emt 0:00:08]} b6 {[%emt 0:00:00]} 3. Nc3 {[%emt 0:05:58]} Bb7 {[%emt 0:00:01]} 4. d5 {[%emt 0:06:01]} e6 {[%emt 0:03:09]} 5. a3 {[%emt 0:05:39]} exd5 {[%emt 0:13:13]} 6. cxd5 {[%emt 0:00:24]} Bc5 {[%emt 0:00:07]} 7. g3 {[%emt 0:16:40]} b5 {[%emt 0:14:14]} 8. Bg2 {[%emt 0:04:59]} a6 {[%emt 0:02:50]} 9. e4 {[%emt 0:07:43]} O-O {[%emt 0:02:17]} 10. Nge2 {[%emt 0:01:05]} d6 {[%emt 0:10:55]} 11. O-O {[%emt 0:01:59]} c6 {[%emt 0:01:23]} 12. b4 {[%emt 0:20:32]} Bb6 {[%emt 0:01:35]} 13. Nd4 {[%emt 0:00:21]} cxd5 {[%emt 0:21:44]} 14. exd5 {[%emt 0:00:17]} Qc7 {[%emt 0:03:34]} 15. Bb2 {[%emt 0:04:49]} Nbd7 {[%emt 0:08:34]} 16. Rc1 {[%emt 0:00:54]} Bxd4 {[%emt 0:01:15]} 17. Qxd4 {[%emt 0:02:19]} Qb6 {[%emt 0:00:08]} 18. Ne4 {[%emt 0:09:06]} Qxd4 {[%emt 0:02:47]} 19. Bxd4 {[%emt 0:00:02]} Nxe4 {[%emt 0:01:08]} 20. Bxe4 {[%emt 0:00:02]} Rfe8 {[%emt 0:07:20]} 21. f3 {[%emt 0:02:50]} Rac8 {[%emt 0:01:20]} 22. Bf5 {[%emt 0:00:45]} Rxc1 {[%emt 0:00:42]} 23. Rxc1 {[%emt 0:00:02]} Ne5 {[%emt 0:00:06]} 24. Bxe5 {[%emt 0:00:40]} Rxe5 {[%emt 0:01:23]} 25. Bd7 {[%emt 0:02:16]} Kf8 {[%emt 0:01:17]} 26. Bc6 {[%emt 0:00:46]} Bxc6 {[%emt 0:01:02]} 27. dxc6 {[%emt 0:02:39]} Re8 {[%emt 0:00:01]} 28. Rd1 {[%emt 0:02:01]} Ke7 {[%emt 0:00:11]} 29. Re1+ {[%emt 0:00:13]} Kf8 {[%emt 0:00:01]} 30. Rd1 {[%emt 0:00:14]} Ke7 {[%emt 0:00:02]} 31. Re1+ {[%emt 0:00:46]} Kf8 {[%emt 0:00:02]} 32. Rd1 1-0

[Event "ESP-chT Primera Division 2019"]
[Site "Linares"]
[Date "2019.08.30"]
[Round "5.17"]
[White "Cori T., Deysi"]
[Black "Llobell Cortell, Enrique"]
[Result "1/2-1/2"]
[ECO "A46"]
[WhiteElo "2400"]
[BlackElo "2400"]
[Annotator "NA"]
[PlyCount "60"]
[EventDate "2019.08.26"]
[EventType "team-tourn"]
[EventCountry "ESP"]
[SourceTitle "playchess.com"]
[Source "ChessBase"]
[SourceQuality "1"]
[TimeControl "5400+30"]

1. d4 {[%emt 0:00:00]} Nf6 {[%emt 0:00:12]} 2. Nf3 {[%emt 0:00:00]} d5 {[%emt 0:01:34]} 3. c4 {[%emt 0:00:18]} e6 {[%emt 0:00:59]} 4. e3 {[%emt 0:02:05]} a6 {[%emt 0:01:32]} 5. c5 {[%emt 0:08:30]} b6 {[%emt 0:06:42]} 6. cxb6 {[%emt 0:06:54]} c5 {[%emt 0:16:05]} 7. Nc3 {[%emt 0:01:00]} cxd4 {[%emt 0:10:56]} 8. Nxd4 {[%emt 0:07:54]} Qxb6 {[%emt 0:03:28]} 9. Bd2 {[%emt 0:00:58]} Nbd7 {[%emt 0:13:32]} 10. Rc1 {[%emt 0:09:36]} Bd6 {[%emt 0:10:43]} 11. Na4 {[%emt 0:02:34]} Qb7 {[%emt 0:07:38]} 12. Nc6 {[%emt 0:05:11]} O-O {[%emt 0:01:22]} 13. Bd3 {[%emt 0:01:52]} Nb6 {[%emt 0:07:59]} 14. Nxb6 {[%emt 0:09:00]} Qxb6 {[%emt 0:00:13]} 15. Bc3 {[%emt 0:00:38]} Nd7 {[%emt 0:11:34]} 16. Bd4 {[%emt 0:23:20]} Qb7 {[%emt 0:00:02]} 17. f4 {[%emt 0:00:09]} Re8 {[%emt 0:02:06]} 18. O-O {[%emt 0:03:08]} Nf8 {[%emt 0:00:02]} 19. Qh5 {[%emt 0:07:33]} Bd7 {[%emt 0:01:25]} 20. Ne5 {[%emt 0:00:03]} Bb5 {[%emt 0:00:26]} 21. Bxb5 {[%emt 0:01:12]} axb5 {[%emt 0:00:01]} 22. a3 {[%emt 0:04:43]} f6 {[%emt 0:00:02]} 23. Nd3 {[%emt 0:00:42]} Rac8 {[%emt 0:01:09]} 24. Qg4 {[%emt 0:00:32]} Qf7 {[%emt 0:00:22]} 25. h3 {[%emt 0:00:39]} Rc4 {[%emt 0:00:37]} 26. Rc3 {[%emt 0:02:49]} Rec8 {[%emt 0:00:43]} 27. Rb3 {[%emt 0:00:02]} Rb8 {[%emt 0:00:27]} 28. Qf3 {[%emt 0:00:59]} Kh8 {[%emt 0:00:07]} 29. Kh1 {[%emt 0:01:04]} Nd7 {[%emt 0:00:01]} 30. Qe2 {[%emt 0:00:21]} Qg6 {[%emt 0:00:13]} 1/2-1/2

[Event "ESP-chT Primera Division 2019"]
[Site "Linares"]
[Date "2019.08.30"]
[Round "5.18"]
[White "Garcia Martin, Marta"]
[Black "Antunez Munoz, Ines"]
[Result "1-0"]
[ECO "C03"]
[WhiteElo "2313"]
[BlackElo "1891"]
[Annotator "NA"]
[PlyCount "87"]
[EventDate "2019.08.26"]
[EventType "team-tourn"]
[EventCountry "ESP"]
[SourceTitle "playchess.com"]
[Source "ChessBase"]
[SourceQuality "1"]
[TimeControl "5400+30"]

1. e4 {[%emt 0:00:00]} e6 {[%emt 0:00:00]} 2. d4 {[%emt 0:00:04]} d5 {[%emt 0:00:00]} 3. Nd2 {[%emt 0:00:59]} Be7 {[%emt 0:00:16]} 4. Bd3 {[%emt 0:07:28]} c5 {[%emt 0:01:00]} 5. dxc5 {[%emt 0:00:09]} Nf6 {[%emt 0:00:49]} 6. Qe2 {[%emt 0:00:36]} O-O {[%emt 0:01:28]} 7. Ngf3 {[%emt 0:00:23]} a5 {[%emt 0:00:50]} 8. c3 {[%emt 0:04:25]} Na6 {[%emt 0:01:59]} 9. e5 {[%emt 0:00:12]} Nd7 {[%emt 0:00:13]} 10. h4 {[%emt 0:11:32]} f5 {[%emt 0:18:50]} 11. Bxa6 {[%emt 0:21:13]} Rxa6 {[%emt 0:01:24]} 12. b4 {[%emt 0:00:30]} Qc7 {[%emt 0:04:24]} 13. O-O {[%emt 0:12:03]} Ra8 {[%emt 0:08:29]} 14. Nb3 {[%emt 0:02:25]} b6 {[%emt 0:13:00]} 15. Nbd4 {[%emt 0:16:00]} Nb8 {[%emt 0:00:33]} 16. cxb6 {[%emt 0:00:24]} Qxb6 {[%emt 0:01:20]} 17. b5 {[%emt 0:00:22]} Bd7 {[%emt 0:03:34]} 18. a4 {[%emt 0:01:03]} Be8 {[%emt 0:07:12]} 19. c4 {[%emt 0:04:22]} dxc4 {[%emt 0:07:04]} 20. Qxc4 {[%emt 0:00:26]} Bf7 {[%emt 0:00:22]} 21. Be3 {[%emt 0:03:08]} Qb7 {[%emt 0:01:17]} 22. Rac1 {[%emt 0:00:41]} Ba3 {[%emt 0:11:15]} 23. Rc2 {[%emt 0:01:43]} Nd7 {[%emt 0:00:06]} 24. Nc6 {[%emt 0:01:43]} Nb6 {[%emt 0:04:27]} 25. Bxb6 {[%emt 0:01:55]} Qxb6 {[%emt 0:00:07]} 26. Ng5 {[%emt 0:00:14]} Rfe8 {[%emt 0:01:12]} 27. Rd1 {[%emt 0:01:12]} h6 {[%emt 0:04:52]} 28. Nxf7 {[%emt 0:00:08]} Kxf7 {[%emt 0:00:06]} 29. Rd7+ {[%emt 0:01:25]} Kg8 {[%emt 0:00:15]} 30. Rc3 {[%emt 0:01:04]} Bf8 {[%emt 0:00:35]} 31. Rg3 {[%emt 0:00:08]} Kh8 {[%emt 0:02:44]} 32. Rg6 {[%emt 0:00:39]} Rac8 {[%emt 0:03:05]} 33. Rxe6 {[%emt 0:00:45]} Rxe6 {[%emt 0:01:01]} 34. Qxe6 {[%emt 0:00:04]} Qc5 {[%emt 0:01:03]} 35. Qxf5 {[%emt 0:00:30]} Re8 {[%emt 0:01:14]} 36. Rf7 {[%emt 0:00:18]} Kg8 {[%emt 0:00:54]} 37. Qg6 {[%emt 0:01:18]} Qc1+ {[%emt 0:00:30]} 38. Kh2 {[%emt 0:00:05]} Ra8 {[%emt 0:00:25]} 39. b6 {[%emt 0:01:37]} Qb2 {[%emt 0:00:30]} 40. b7 {[%emt 0:00:13]} Rb8 {[%emt 0:00:51]} 41. Nxb8 {[%emt 0:01:15]} Qxe5+ {[%emt 0:00:06]} 42. f4 {[%emt 0:00:39]} Qxb8 {[%emt 0:00:07]} 43. Qe6 {[%emt 0:00:05]} Kh8 {[%emt 0:00:49]} 44. Qc8 {[%emt 0:00:07]} 1-0

[Event "ESP-chT Primera Division 2019"]
[Site "Linares"]
[Date "2019.08.30"]
[Round "5.22"]
[White "Sousa, Andre Ventura"]
[Black "Cramling, Pia"]
[Result "1/2-1/2"]
[ECO "A37"]
[WhiteElo "2362"]
[BlackElo "2493"]
[Annotator "ChessBase"]
[PlyCount "43"]
[EventDate "2019.08.26"]
[EventType "team-tourn"]
[EventCountry "ESP"]
[SourceTitle "playchess.com"]
[Source "ChessBase"]
[SourceQuality "1"]
[TimeControl "5400+30"]

1. Nf3 {[%emt 0:00:00]} c5 {[%emt 0:00:00]} 2. g3 {[%emt 0:00:29]} g6 {[%emt 0:01:18]} 3. Bg2 {[%emt 0:00:24]} Bg7 {[%emt 0:00:14]} 4. c4 {[%emt 0:03:00]} Nc6 {[%emt 0:00:24]} 5. Nc3 {[%emt 0:00:15]} d6 {[%emt 0:01:03]} 6. d3 {[%emt 0:02:00]} e6 {[%emt 0:08:58]} 7. Bd2 {[%emt 0:00:55]} Nge7 {[%emt 0:00:23]} 8. h4 {[%emt 0:00:23]} h6 {[%emt 0:02:01]} 9. Qc1 {[%emt 0:02:54]} b6 {[%emt 0:04:15]} 10. h5 {[%emt 0:07:33]} g5 {[%emt 0:02:57]} 11. Nxg5 {[%emt 0:00:06]} hxg5 {[%emt 0:00:34]} 12. Bxg5 {[%emt 0:00:06]} f6 {[%emt 0:13:32]} 13. h6 {[%emt 0:18:42]} fxg5 {[%emt 0:01:45]} 14. hxg7 {[%emt 0:00:10]} Rxh1+ {[%emt 0:00:46]} 15. Bxh1 {[%emt 0:00:01]} Bb7 {[%emt 0:00:59]} 16. Qxg5 {[%emt 0:04:44]} Kd7 {[%emt 0:05:56]} 17. O-O-O {[%emt 0:08:02]} Ng8 {[%emt 0:15:36]} 18. f4 {[%emt 0:03:07]} Kc7 {[%emt 0:13:03]} 19. Nb5+ {[%emt 0:14:56]} Kd7 {[%emt 0:00:10]} 20. Nc3 {[%emt 0:00:02]} Kc7 {[%emt 0:06:03]} 21. Nb5+ {[%emt 0:00:03]} Kd7 {[%emt 0:00:07]} 22. Nc3 {[%emt 0:00:02]} 1/2-1/2

[Event "ESP-chT Primera Division 2019"]
[Site "Linares"]
[Date "2019.08.30"]
[Round "5.23"]
[White "Castellanos Rodriguez, Renier"]
[Black "Gomez Dieguez, David"]
[Result "1/2-1/2"]
[ECO "A33"]
[WhiteElo "2493"]
[BlackElo "2296"]
[Annotator "ChessBase"]
[PlyCount "63"]
[EventDate "2019.08.26"]
[EventType "team-tourn"]
[EventCountry "ESP"]
[SourceTitle "playchess.com"]
[Source "ChessBase"]
[SourceQuality "1"]
[TimeControl "5400+30"]

1. c4 {[%emt 0:00:00]} Nf6 {[%emt 0:00:00]} 2. Nc3 {[%emt 0:00:00]} c5 {[%emt 0:00:00]} 3. Nf3 {[%emt 0:00:43]} Nc6 {[%emt 0:00:00]} 4. d4 {[%emt 0:02:00]} cxd4 {[%emt 0:00:00]} 5. Nxd4 {[%emt 0:00:03]} e6 {[%emt 0:00:12]} 6. a3 {[%emt 0:06:44]} a6 {[%emt 0:01:40]} 7. e4 {[%emt 0:01:56]} d6 {[%emt 0:01:48]} 8. Be3 {[%emt 0:03:37]} Bd7 {[%emt 0:07:15]} 9. Be2 {[%emt 0:01:05]} Be7 {[%emt 0:00:54]} 10. O-O {[%emt 0:01:43]} O-O {[%emt 0:05:43]} 11. Rc1 {[%emt 0:02:00]} Nxd4 {[%emt 0:05:52]} 12. Qxd4 {[%emt 0:02:23]} Qc7 {[%emt 0:00:35]} 13. Rfd1 {[%emt 0:01:36]} Rac8 {[%emt 0:05:22]} 14. b4 {[%emt 0:04:40]} Rfd8 {[%emt 0:02:33]} 15. f3 {[%emt 0:08:17]} Be8 {[%emt 0:01:20]} 16. Qb6 {[%emt 0:04:55]} Qb8 {[%emt 0:05:47]} 17. Qa7 {[%emt 0:05:03]} Qxa7 {[%emt 0:09:00]} 18. Bxa7 {[%emt 0:01:23]} Nd7 {[%emt 0:00:27]} 19. Be3 {[%emt 0:01:36]} Ne5 {[%emt 0:04:33]} 20. Bb6 {[%emt 0:04:02]} Rd7 {[%emt 0:00:09]} 21. Na4 {[%emt 0:00:38]} Bg5 {[%emt 0:01:01]} 22. Rc3 {[%emt 0:00:32]} Re7 {[%emt 0:08:10]} 23. Nb2 {[%emt 0:02:02]} d5 {[%emt 0:02:54]} 24. exd5 {[%emt 0:12:58]} exd5 {[%emt 0:00:11]} 25. Bc5 {[%emt 0:03:33]} d4 {[%emt 0:11:48]} 26. Bxe7 {[%emt 0:05:16]} dxc3 {[%emt 0:00:11]} 27. Bxg5 {[%emt 0:00:29]} cxb2 {[%emt 0:00:07]} 28. Rb1 {[%emt 0:00:32]} Nxc4 {[%emt 0:01:34]} 29. Bxc4 {[%emt 0:00:09]} Rxc4 {[%emt 0:00:03]} 30. Rxb2 {[%emt 0:00:08]} Rc3 {[%emt 0:02:02]} 31. Re2 {[%emt 0:02:51]} Bc6 {[%emt 0:01:25]} 32. Re3 {[%emt 0:00:09]} 1/2-1/2

[Event "ESP-chT Primera Division 2019"]
[Site "Linares"]
[Date "2019.08.30"]
[Round "5.24"]
[White "Hernandez Estevez, Yudania"]
[Black "Oliva Castaneda, Kevel"]
[Result "0-1"]
[ECO "B84"]
[WhiteElo "2247"]
[BlackElo "2479"]
[Annotator "ChessBase"]
[PlyCount "86"]
[EventDate "2019.08.26"]
[EventType "team-tourn"]
[EventCountry "ESP"]
[SourceTitle "playchess.com"]
[Source "ChessBase"]
[SourceQuality "1"]
[TimeControl "5400+30"]

1. e4 {[%emt 0:00:00]} c5 {[%emt 0:00:00]} 2. Nf3 {[%emt 0:00:00]} d6 {[%emt 0:00:00]} 3. d4 {[%emt 0:00:00]} cxd4 {[%emt 0:00:00]} 4. Nxd4 {[%emt 0:00:00]} Nf6 {[%emt 0:00:00]} 5. Nc3 {[%emt 0:00:10]} a6 {[%emt 0:00:00]} 6. Be2 {[%emt 0:00:56]} e6 {[%emt 0:00:41]} 7. Be3 {[%emt 0:00:56]} Be7 {[%emt 0:00:10]} 8. Qd2 {[%emt 0:01:34]} Qc7 {[%emt 0:00:55]} 9. O-O-O {[%emt 0:02:30]} Nc6 {[%emt 0:05:03]} 10. g4 {[%emt 0:08:05]} b5 {[%emt 0:02:07]} 11. g5 {[%emt 0:02:09]} Nd7 {[%emt 0:00:06]} 12. Bxb5 {[%emt 0:02:05]} axb5 {[%emt 0:00:11]} 13. Ndxb5 {[%emt 0:00:04]} Qa5 {[%emt 0:10:30]} 14. Nxd6+ {[%emt 0:01:14]} Bxd6 {[%emt 0:00:04]} 15. Qxd6 {[%emt 0:00:23]} Nce5 {[%emt 0:00:18]} 16. Qd4 {[%emt 0:32:53]} O-O {[%emt 0:01:16]} 17. h4 {[%emt 0:01:07]} Ba6 {[%emt 0:08:10]} 18. h5 {[%emt 0:03:06]} Rfc8 {[%emt 0:04:24]} 19. h6 {[%emt 0:02:32]} Rc4 {[%emt 0:00:59]} 20. Qd6 {[%emt 0:03:59]} Rxc3 {[%emt 0:02:06]} 21. bxc3 {[%emt 0:01:14]} Qxa2 {[%emt 0:01:01]} 22. Qb4 {[%emt 0:04:20]} Nd3+ {[%emt 0:00:28]} 23. Rxd3 {[%emt 0:07:37]} Bxd3 {[%emt 0:00:18]} 24. Qb2 {[%emt 0:02:17]} Bxe4 {[%emt 0:01:04]} 25. Rd1 {[%emt 0:00:31]} Qa1+ {[%emt 0:00:35]} 26. Qxa1 {[%emt 0:00:17]} Rxa1+ {[%emt 0:00:05]} 27. Kd2 {[%emt 0:00:12]} Rxd1+ {[%emt 0:00:03]} 28. Kxd1 {[%emt 0:00:06]} gxh6 {[%emt 0:00:06]} 29. gxh6 {[%emt 0:00:19]} Kf8 {[%emt 0:00:06]} 30. c4 {[%emt 0:02:27]} Ke7 {[%emt 0:00:05]} 31. c5 {[%emt 0:00:23]} Ne5 {[%emt 0:00:05]} 32. Ke2 {[%emt 0:09:15]} Bxc2 {[%emt 0:00:27]} 33. Bf4 {[%emt 0:01:35]} Nc6 {[%emt 0:00:16]} 34. Bd6+ {[%emt 0:00:37]} Kd7 {[%emt 0:00:04]} 35. Ke3 {[%emt 0:00:16]} Nd8 {[%emt 0:00:17]} 36. f4 {[%emt 0:03:01]} f6 {[%emt 0:00:45]} 37. Kd4 {[%emt 0:00:46]} Bb3 {[%emt 0:01:13]} 38. Bf8 {[%emt 0:02:06]} Bd5 {[%emt 0:00:15]} 39. Bd6 {[%emt 0:01:18]} Nc6+ {[%emt 0:00:10]} 40. Ke3 {[%emt 0:00:50]} Ke8 {[%emt 0:00:07]} 41. Kf2 {[%emt 0:02:06]} Kf7 {[%emt 0:00:06]} 42. Kg3 {[%emt 0:00:15]} Kg6 {[%emt 0:00:06]} 43. Bf8 {[%emt 0:00:19]} Nd4 {[%emt 0:00:03]} 0-1

[Event "ESP-chT Primera Division 2019"]
[Site "Linares"]
[Date "2019.08.31"]
[Round "6.3"]
[White "Rubio Mejia, Luis Ignacio"]
[Black "Martins, David Pires Tavares"]
[Result "1/2-1/2"]
[ECO "A41"]
[WhiteElo "2435"]
[BlackElo "2427"]
[Annotator "NA"]
[PlyCount "74"]
[EventDate "2019.08.26"]
[EventType "team-tourn"]
[EventCountry "ESP"]
[SourceTitle "playchess.com"]
[Source "ChessBase"]
[SourceQuality "1"]
[TimeControl "5400+30"]

1. d4 {[%emt 0:00:00]} d6 {[%emt 0:00:00]} 2. c4 {[%emt 0:00:00]} f5 {[%emt 0:00:00]} 3. Nc3 {[%emt 0:01:12]} Nf6 {[%emt 0:00:00]} 4. Bg5 {[%emt 0:01:00]} Nbd7 {[%emt 0:00:08]} 5. Qc2 {[%emt 0:00:43]} g6 {[%emt 0:00:15]} 6. h4 {[%emt 0:03:07]} c5 {[%emt 0:10:31]} 7. dxc5 {[%emt 0:30:16]} dxc5 {[%emt 0:01:42]} 8. O-O-O {[%emt 0:03:41]} Bg7 {[%emt 0:00:28]} 9. Nh3 {[%emt 0:16:18]} h6 {[%emt 0:10:34]} 10. Bxf6 {[%emt 0:02:46]} Bxf6 {[%emt 0:00:05]} 11. Nf4 {[%emt 0:12:51]} Kf7 {[%emt 0:00:21]} 12. h5 {[%emt 0:04:05]} g5 {[%emt 0:00:26]} 13. Ng6 {[%emt 0:00:14]} Re8 {[%emt 0:00:22]} 14. Qxf5 {[%emt 0:07:17]} Kg7 {[%emt 0:01:12]} 15. Ne4 {[%emt 0:06:48]} Nb6 {[%emt 0:14:01]} 16. Rxd8 {[%emt 0:03:05]} Bxf5 {[%emt 0:00:15]} 17. Rxa8 {[%emt 0:00:22]} Rxa8 {[%emt 0:00:09]} 18. Nxf6 {[%emt 0:00:23]} Kxf6 {[%emt 0:00:06]} 19. e3 {[%emt 0:00:19]} Nc8 {[%emt 0:03:39]} 20. f4 {[%emt 0:00:36]} Nd6 {[%emt 0:02:05]} 21. Ne5 {[%emt 0:01:19]} gxf4 {[%emt 0:00:22]} 22. exf4 {[%emt 0:00:05]} Rg8 {[%emt 0:00:08]} 23. Rh2 {[%emt 0:01:20]} Nf7 {[%emt 0:00:53]} 24. Nxf7 {[%emt 0:01:43]} Kxf7 {[%emt 0:00:06]} 25. Be2 {[%emt 0:00:58]} b6 {[%emt 0:09:11]} 26. Kd2 {[%emt 0:00:42]} Bg4 {[%emt 0:11:59]} 27. Bd3 {[%emt 0:00:43]} Kf6 {[%emt 0:00:05]} 28. Ke3 {[%emt 0:00:41]} Be6 {[%emt 0:01:12]} 29. Kf2 {[%emt 0:00:57]} Rd8 {[%emt 0:00:52]} 30. Ke3 {[%emt 0:00:10]} Rd4 {[%emt 0:05:06]} 31. b3 {[%emt 0:00:45]} Bf5 {[%emt 0:00:05]} 32. Bxf5 {[%emt 0:00:46]} Kxf5 {[%emt 0:00:06]} 33. g3 {[%emt 0:00:29]} Kg4 {[%emt 0:00:25]} 34. Rh1 {[%emt 0:00:33]} Rd6 {[%emt 0:01:35]} 35. Rg1 {[%emt 0:00:26]} Rd4 {[%emt 0:03:19]} 36. Ke2 {[%emt 0:00:32]} a5 {[%emt 0:11:15]} 37. a4 {[%emt 0:00:22]} Rd6 {[%emt 0:13:11]} 1/2-1/2

[Event "ESP-chT Primera Division 2019"]
[Site "Linares"]
[Date "2019.08.31"]
[Round "6.4"]
[White "Sousa, Andre Ventura"]
[Black "Almagro Llamas, Pablo"]
[Result "1/2-1/2"]
[ECO "B90"]
[WhiteElo "2362"]
[BlackElo "2453"]
[Annotator "ChessBase"]
[PlyCount "75"]
[EventDate "2019.08.26"]
[EventType "team-tourn"]
[EventCountry "ESP"]
[SourceTitle "playchess.com"]
[Source "ChessBase"]
[SourceQuality "1"]
[TimeControl "5400+30"]

1. e4 {[%emt 0:00:00]} c5 {[%emt 0:00:00]} 2. Nf3 d6 {[%emt 0:00:01]} 3. d4 {[%emt 0:00:00]} cxd4 {[%emt 0:00:14]} 4. Nxd4 {[%emt 0:00:00]} Nf6 {[%emt 0:00:17]} 5. Nc3 {[%emt 0:00:00]} a6 {[%emt 0:00:31]} 6. f3 {[%emt 0:00:00]} Qb6 {[%emt 0:01:31]} 7. g4 {[%emt 0:00:00]} Nc6 {[%emt 0:03:27]} 8. Nb3 {[%emt 0:00:00]} e6 {[%emt 0:00:49]} 9. Qe2 {[%emt 0:00:15]} Qc7 {[%emt 0:02:07]} 10. Be3 {[%emt 0:00:52]} b5 {[%emt 0:02:09]} 11. O-O-O {[%emt 0:01:19]} Ne5 {[%emt 0:10:42]} 12. g5 {[%emt 0:23:03]} Nfd7 {[%emt 0:02:54]} 13. f4 {[%emt 0:00:19]} Nc4 {[%emt 0:00:28]} 14. Bd4 {[%emt 0:02:24]} Ndb6 {[%emt 0:25:46]} 15. Bg2 {[%emt 0:16:24]} Bd7 {[%emt 0:04:04]} 16. f5 {[%emt 0:11:21]} b4 {[%emt 0:05:42]} 17. fxe6 {[%emt 0:00:57]} fxe6 {[%emt 0:01:21]} 18. Nd5 {[%emt 0:08:57]} Nxd5 {[%emt 0:04:10]} 19. exd5 {[%emt 0:00:19]} e5 {[%emt 0:00:06]} 20. Nc5 {[%emt 0:03:43]} dxc5 {[%emt 0:13:36]} 21. Qxc4 {[%emt 0:01:13]} Bd6 {[%emt 0:12:14]} 22. Bxe5 {[%emt 0:01:19]} O-O {[%emt 0:00:52]} 23. Bg3 {[%emt 0:03:21]} Bb5 {[%emt 0:02:34]} 24. Qh4 {[%emt 0:04:42]} c4 {[%emt 0:00:26]} 25. Be4 {[%emt 0:03:19]} g6 {[%emt 0:00:11]} 26. Qh6 {[%emt 0:01:58]} Bf4+ {[%emt 0:05:14]} 27. Kb1 {[%emt 0:00:08]} Qd6 {[%emt 0:00:04]} 28. Bg2 {[%emt 0:09:12]} b3 {[%emt 0:00:38]} 29. cxb3 {[%emt 0:00:08]} cxb3 {[%emt 0:00:06]} 30. Bh3 {[%emt 0:01:50]} Bd7 {[%emt 0:01:50]} 31. Rhe1 {[%emt 0:03:28]} bxa2+ {[%emt 0:00:21]} 32. Ka1 {[%emt 0:00:03]} Rab8 {[%emt 0:00:37]} 33. Be6+ {[%emt 0:01:42]} Bxe6 {[%emt 0:00:38]} 34. Rxe6 {[%emt 0:02:46]} Qb4 {[%emt 0:00:19]} 35. Rxg6+ {[%emt 0:00:28]} hxg6 {[%emt 0:00:09]} 36. Qxg6+ {[%emt 0:00:02]} Kh8 {[%emt 0:00:07]} 37. Qh6+ {[%emt 0:00:15]} Kg8 {[%emt 0:00:07]} 38. Qg6+ {[%emt 0:00:03]} 1/2-1/2

[Event "ESP-chT Primera Division 2019"]
[Site "Linares"]
[Date "2019.08.31"]
[Round "6.6"]
[White "Hernandez Estevez, Yudania"]
[Black "Rodrigo Yanguas, Maria"]
[Result "1-0"]
[ECO "B51"]
[WhiteElo "2247"]
[BlackElo "2079"]
[Annotator "NA"]
[PlyCount "75"]
[EventDate "2019.08.26"]
[EventType "team-tourn"]
[EventCountry "ESP"]
[SourceTitle "playchess.com"]
[Source "ChessBase"]
[SourceQuality "1"]
[TimeControl "5400+30"]

1. e4 {[%emt 0:00:00]} c5 {[%emt 0:00:00]} 2. Nf3 {[%emt 0:00:47]} d6 {[%emt 0:00:00]} 3. Bb5+ {[%emt 0:01:21]} Nd7 {[%emt 0:00:22]} 4. O-O {[%emt 0:00:59]} Ngf6 {[%emt 0:03:14]} 5. Nc3 {[%emt 0:01:01]} a6 {[%emt 0:00:55]} 6. Bxd7+ {[%emt 0:00:06]} Nxd7 {[%emt 0:02:24]} 7. d4 {[%emt 0:01:10]} cxd4 {[%emt 0:01:47]} 8. Qxd4 {[%emt 0:01:58]} e5 {[%emt 0:00:35]} 9. Qe3 {[%emt 0:08:34]} Be7 {[%emt 0:05:37]} 10. Rd1 {[%emt 0:01:32]} O-O {[%emt 0:01:51]} 11. b3 {[%emt 0:01:26]} Qa5 {[%emt 0:20:39]} 12. a4 {[%emt 0:07:59]} Nf6 {[%emt 0:05:27]} 13. Ba3 {[%emt 0:10:08]} Rd8 {[%emt 0:03:18]} 14. Nd5 {[%emt 0:13:09]} Nxd5 {[%emt 0:00:42]} 15. Rxd5 {[%emt 0:01:00]} Qc7 {[%emt 0:00:47]} 16. Rad1 {[%emt 0:02:57]} Be6 {[%emt 0:01:43]} 17. R5d2 {[%emt 0:05:37]} h6 {[%emt 0:01:43]} 18. Bb4 {[%emt 0:01:23]} b6 {[%emt 0:05:54]} 19. c4 {[%emt 0:00:38]} Rab8 {[%emt 0:04:11]} 20. Rd3 {[%emt 0:00:57]} f5 {[%emt 0:05:13]} 21. Qe1 {[%emt 0:01:32]} fxe4 {[%emt 0:03:48]} 22. Qxe4 {[%emt 0:00:20]} b5 {[%emt 0:00:21]} 23. axb5 {[%emt 0:04:13]} axb5 {[%emt 0:00:12]} 24. Nd4 {[%emt 0:02:27]} Bxc4 {[%emt 0:08:21]} 25. bxc4 {[%emt 0:01:53]} exd4 {[%emt 0:00:08]} 26. Rxd4 {[%emt 0:02:18]} bxc4 {[%emt 0:03:24]} 27. Qd5+ {[%emt 0:00:33]} Kh8 {[%emt 0:00:15]} 28. Ba5 {[%emt 0:00:05]} Qa7 {[%emt 0:04:51]} 29. Bxd8 {[%emt 0:00:11]} Bxd8 {[%emt 0:00:35]} 30. Qxc4 {[%emt 0:00:53]} Bb6 {[%emt 0:00:24]} 31. Rf4 {[%emt 0:00:17]} Bc5 {[%emt 0:00:37]} 32. Rf7 {[%emt 0:00:53]} Qa3 {[%emt 0:00:33]} 33. Qg4 {[%emt 0:03:56]} Qc3 {[%emt 0:01:39]} 34. h4 {[%emt 0:00:36]} Qb2 {[%emt 0:02:09]} 35. g3 Qc3 36. Kg2 {[%emt 0:04:23]} Qb2 {[%emt 0:00:57]} 37. Rb1 {[%emt 0:01:39]} Rb4 {[%emt 0:02:30]} 38. Qc8+ {[%emt 0:00:28]} 1-0